[Event "FIDE WCCC Girls-10 2024"]
[Site "Montesilvano"]
[Date "2024.11.24"]
[Round "9.19"]
[White "Constantin-Ciuntu, Anne-Sophie"]
[Black "Tykalova, Barbora"]
[Result "1/2-1/2"]
[Annotator "NA RC"]
[ECO "B13"]
[WhiteElo "1672"]
[BlackElo "1596"]
[PlyCount "92"]
[EventDate "2024.11.18"]
[EventType "swiss"]
[EventCountry "ITA"]
[SourceTitle "playchess.com"]
[Source "ChessBase"]
[SourceQuality "1"]
[TimeControl "5400+30"]

1. d4 {[%emt 0:00:02]} d5 {[%emt 0:00:21]} 2. Bf4 {[%emt 0:00:09]} c5 {[%emt 0:00:24]} 3. e3 {[%emt 0:00:13]} cxd4 {[%emt 0:00:36]} 4. exd4 {[%emt 0:00:10]} Nc6 {[%emt 0:00:19]} 5. Nf3 {[%emt 0:00:36]} Nf6 {[%emt 0:01:32]} 6. Be2 {[%emt 0:04:25]} Bf5 {[%emt 0:03:21]} 7. O-O {[%emt 0:03:58]} e6 {[%emt 0:01:59]} 8. Nbd2 {[%emt 0:11:01]} Be7 {[%emt 0:03:19]} 9. c3 {[%emt 0:09:07]} h6 {[%emt 0:04:51]} 10. Qb3 {[%emt 0:04:25]} Qc8 {[%emt 0:15:03]} 11. Ne5 {[%emt 0:09:39]} Nxe5 {[%emt 0:03:46]} 12. Bxe5 {[%emt 0:52:45]} O-O {[%emt 0:02:33]} 13. a4 {[%emt 0:00:00]} Nd7 {[%emt 0:04:51]} 14. Bg3 {[%emt 0:00:00]} Bg6 {[%emt 0:02:14]} 15. Rfe1 {[%emt 0:00:00]} f5 {[%emt 0:05:01]} 16. Bd3 {[%emt 0:00:00]} Bf6 {[%emt 0:06:35]} 17. Nf3 {[%emt 0:00:00]} Bf7 {[%emt 0:04:19]} 18. Ne5 {[%emt 0:00:00]} Nxe5 {[%emt 0:03:18]} 19. Bxe5 {[%emt 0:00:00]} Be7 {[%emt 0:02:58]} 20. Re3 {[%emt 0:00:00]} g5 {[%emt 0:06:00]} 21. f4 {[%emt 0:00:00]} Bg6 {[%emt 0:02:50]} 22. Rh3 {[%emt 0:00:00]} Kh7 {[%emt 0:02:23]} 23. Re1 {[%emt 0:02:12]} g4 {[%emt 0:02:43]} 24. Rhe3 {[%emt 0:00:34]} Bf7 {[%emt 0:03:19]} 25. g3 {[%emt 0:01:26]} Rg8 {[%emt 0:03:01]} 26. Ra1 {[%emt 0:01:09]} Rg6 {[%emt 0:02:30]} 27. a5 {[%emt 0:00:44]} Be8 {[%emt 0:01:58]} 28. Qc2 {[%emt 0:00:55]} Bd7 {[%emt 0:02:38]} 29. b4 {[%emt 0:00:30]} a6 {[%emt 0:01:20]} 30. c4 {[%emt 0:00:40]} dxc4 {[%emt 0:03:49]} 31. Qxc4 {[%emt 0:00:30]} Qxc4 {[%emt 0:01:17]} 32. Bxc4 {[%emt 0:00:01]} Rc8 33. Bf1 h5 34. Bg2 Bc6 35. Bxc6 {[%emt 0:02:01]} Rxc6 {[%emt 0:02:32]} 36. Rb3 {[%emt 0:00:23]} b5 {[%emt 0:00:53]} 37. Rab1 {[%emt 0:00:48]} Rc4 {[%emt 0:00:44]} 38. Kf1 {[%emt 0:00:18]} Rg8 {[%emt 0:00:52]} 39. Ke1 {[%emt 0:00:28]} Rgc8 {[%emt 0:00:38]} 40. Kd1 {[%emt 0:00:25]} Rc2 {[%emt 0:00:58]} 41. R3b2 R2c4 {[%emt 0:00:37]} 42. Kd2 {[%emt 0:00:45]} h4 {[%emt 0:00:26]} 43. Kd1 {[%emt 0:00:34]} hxg3 {[%emt 0:00:20]} 44. hxg3 {[%emt 0:00:07]} Rc3 {[%emt 0:00:25]} 45. Rb3 {[%emt 0:00:10]} R3c4 {[%emt 0:00:29]} 46. R3b2 {[%emt 0:00:21]} Kg6 {[%emt 0:00:27]} 1/2-1/2

[Event "FIDE WCCC Girls-10 2024"]
[Site "Montesilvano"]
[Date "2024.11.24"]
[Round "9.20"]
[White "Yi, Ruiyu"]
[Black "Trzcinska, Weronika"]
[Result "1-0"]
[Annotator "NA RC"]
[ECO "D35"]
[WhiteElo "1571"]
[BlackElo "1653"]
[PlyCount "49"]
[EventDate "2024.11.18"]
[EventType "swiss"]
[EventCountry "ITA"]
[SourceTitle "playchess.com"]
[Source "ChessBase"]
[SourceQuality "1"]
[TimeControl "5400+30"]

1. d4 {[%emt 0:01:07]} d5 {[%emt 0:00:29]} 2. c4 {[%emt 0:00:10]} e6 {[%emt 0:00:10]} 3. Nc3 {[%emt 0:00:06]} Nf6 {[%emt 0:00:10]} 4. cxd5 {[%emt 0:00:06]} exd5 {[%emt 0:00:16]} 5. Bg5 {[%emt 0:00:08]} c6 {[%emt 0:00:25]} 6. Qc2 {[%emt 0:00:20]} Be7 {[%emt 0:01:19]} 7. e3 {[%emt 0:00:05]} Be6 {[%emt 0:01:24]} 8. Bd3 {[%emt 0:00:13]} h6 {[%emt 0:00:21]} 9. Bh4 {[%emt 0:00:42]} Nbd7 {[%emt 0:01:17]} 10. Nge2 {[%emt 0:00:25]} Qc7 {[%emt 0:01:14]} 11. Nf4 {[%emt 0:08:11]} Qd6 {[%emt 0:04:42]} 12. Bg3 {[%emt 0:01:33]} Qb4 {[%emt 0:02:12]} 13. a3 {[%emt 0:01:30]} Qa5 {[%emt 0:00:55]} 14. Nxe6 {[%emt 0:00:30]} fxe6 {[%emt 0:00:19]} 15. Bg6+ {[%emt 0:00:09]} Kd8 {[%emt 0:06:04]} 16. O-O {[%emt 0:00:44]} b5 {[%emt 0:04:23]} 17. e4 {[%emt 0:00:49]} Nf8 {[%emt 0:18:58]} 18. exd5 {[%emt 0:03:02]} exd5 {[%emt 0:07:20]} 19. Rfe1 {[%emt 0:01:19]} a6 {[%emt 0:09:47]} 20. Bf5 {[%emt 0:02:24]} Rg8 {[%emt 0:07:41]} 21. Qe2 {[%emt 0:02:46]} Ra7 {[%emt 0:02:42]} 22. Rac1 {[%emt 0:01:01]} g6 {[%emt 0:02:10]} 23. Be6 {[%emt 0:02:54]} Rg7 {[%emt 0:01:03]} 24. Qe5 {[%emt 0:01:56]} Qb6 {[%emt 0:02:23]} 25. Nxd5 {[%emt 0:06:14]} 1-0

[Event "FIDE WCCC Girls-10 2024"]
[Site "Montesilvano"]
[Date "2024.11.24"]
[Round "9.21"]
[White "Mandukhai, Munkhbat"]
[Black "Wang, Mi Ya Mia"]
[Result "1/2-1/2"]
[Annotator "NA RC"]
[ECO "B21"]
[WhiteElo "1645"]
[BlackElo "1552"]
[PlyCount "152"]
[EventDate "2024.11.18"]
[EventType "swiss"]
[EventCountry "ITA"]
[SourceTitle "playchess.com"]
[Source "ChessBase"]
[SourceQuality "1"]
[TimeControl "5400+30"]

1. e4 {[%emt 0:00:02]} c5 {[%emt 0:00:06]} 2. d4 {[%emt 0:00:14]} cxd4 {[%emt 0:00:27]} 3. c3 {[%emt 0:00:05]} dxc3 {[%emt 0:00:19]} 4. bxc3 {[%emt 0:00:06]} Nc6 {[%emt 0:00:35]} 5. Nf3 {[%emt 0:00:35]} e6 {[%emt 0:01:02]} 6. Bf4 {[%emt 0:00:26]} d6 {[%emt 0:01:07]} 7. Bc4 {[%emt 0:03:06]} Be7 {[%emt 0:01:34]} 8. O-O {[%emt 0:00:10]} e5 {[%emt 0:00:41]} 9. Bg3 {[%emt 0:00:09]} Nf6 {[%emt 0:01:09]} 10. Qe2 {[%emt 0:00:18]} O-O {[%emt 0:00:58]} 11. h3 {[%emt 0:00:21]} Qc7 {[%emt 0:02:22]} 12. Rd1 {[%emt 0:06:26]} b6 {[%emt 0:02:01]} 13. Bd3 {[%emt 0:03:50]} Bb7 {[%emt 0:02:15]} 14. Nbd2 {[%emt 0:01:18]} Rac8 {[%emt 0:08:35]} 15. Rac1 {[%emt 0:01:05]} h6 {[%emt 0:03:15]} 16. Nh4 {[%emt 0:03:33]} Nd8 {[%emt 0:04:18]} 17. Nf5 {[%emt 0:00:30]} Ne6 {[%emt 0:01:46]} 18. Nf3 {[%emt 0:04:44]} Nc5 {[%emt 0:03:19]} 19. Nd2 {[%emt 0:07:25]} Rfd8 {[%emt 0:03:33]} 20. f3 {[%emt 0:03:22]} Ne6 {[%emt 0:03:59]} 21. Bc4 {[%emt 0:14:24]} Nh5 {[%emt 0:03:12]} 22. Qe1 {[%emt 0:06:47]} Bg5 {[%emt 0:06:26]} 23. Bh4 {[%emt 0:08:31]} Bxd2 {[%emt 0:15:53]} 24. Rxd2 {[%emt 0:08:56]} Qxc4 {[%emt 0:00:53]} 25. Bxd8 {[%emt 0:01:09]} Rxd8 {[%emt 0:00:18]} 26. Qe3 {[%emt 0:05:20]} Nhf4 {[%emt 0:02:29]} 27. Rcd1 {[%emt 0:01:01]} Ba6 {[%emt 0:04:42]} 28. Nxd6 {[%emt 0:05:26]} Ne2+ {[%emt 0:01:14]} 29. Kh2 {[%emt 0:00:21]} Qc6 {[%emt 0:02:01]} 30. Nf5 {[%emt 0:00:25]} Rxd2 {[%emt 0:05:38]} 31. Rxd2 {[%emt 0:01:01]} Kh7 {[%emt 0:02:32]} 32. Nd6 {[%emt 0:06:37]} f6 {[%emt 0:01:18]} 33. Nf5 {[%emt 0:00:14]} N2f4 {[%emt 0:02:53]} 34. Rd6 {[%emt 0:00:43]} Qc4 {[%emt 0:01:47]} 35. Qd2 {[%emt 0:01:50]} Qf1 {[%emt 0:01:10]} 36. Ne3 {[%emt 0:01:33]} Qb5 {[%emt 0:01:38]} 37. g3 {[%emt 0:05:17]} Ng5 {[%emt 0:00:25]} 38. Qd1 {[%emt 0:01:32]} Nfxh3 {[%emt 0:00:19]} 39. Rd7 {[%emt 0:00:26]} Bc8 40. Rd2 Be6 {[%emt 0:03:23]} 41. Rg2 {[%emt 0:01:07]} Qe8 {[%emt 0:00:44]} 42. g4 {[%emt 0:00:23]} Nf4 {[%emt 0:00:16]} 43. Rd2 {[%emt 0:00:27]} Qc6 {[%emt 0:01:08]} 44. c4 {[%emt 0:00:34]} Qc5 {[%emt 0:00:40]} 45. Ng2 {[%emt 0:00:37]} Nxg2 {[%emt 0:00:24]} 46. Kxg2 {[%emt 0:00:22]} Qxc4 47. Rc2 {[%emt 0:00:23]} Qa4 {[%emt 0:01:04]} 48. Qd2 {[%emt 0:00:09]} Qa3 {[%emt 0:00:48]} 49. Qe2 {[%emt 0:00:48]} a6 {[%emt 0:00:50]} 50. Rb2 {[%emt 0:00:34]} b5 {[%emt 0:00:15]} 51. Rc2 {[%emt 0:00:08]} Bc4 {[%emt 0:00:18]} 52. Qf2 {[%emt 0:00:29]} a5 {[%emt 0:00:18]} 53. Rd2 {[%emt 0:00:43]} b4 {[%emt 0:00:33]} 54. Rc2 {[%emt 0:00:28]} Be6 {[%emt 0:00:33]} 55. Rb2 {[%emt 0:00:26]} a4 {[%emt 0:00:23]} 56. Rd2 {[%emt 0:00:27]} b3 {[%emt 0:01:17]} 57. axb3 {[%emt 0:00:06]} axb3 {[%emt 0:00:04]} 58. Rb2 {[%emt 0:00:20]} Qb4 {[%emt 0:00:34]} 59. Rd2 {[%emt 0:01:04]} Qc3 {[%emt 0:00:19]} 60. Re2 {[%emt 0:00:21]} Qc1 {[%emt 0:00:45]} 61. Rb2 {[%emt 0:00:30]} Qc3 {[%emt 0:00:47]} 62. Re2 {[%emt 0:00:14]} b2 {[%emt 0:00:26]} 63. Rxb2 {[%emt 0:00:26]} Nxf3 {[%emt 0:00:15]} 64. Re2 {[%emt 0:00:31]} Ng5 {[%emt 0:00:25]} 65. Re3 {[%emt 0:00:17]} Qd4 {[%emt 0:00:14]} 66. Qe1 {[%emt 0:00:53]} Bxg4 {[%emt 0:00:13]} 67. Kg3 {[%emt 0:00:26]} Qd1 {[%emt 0:01:17]} 68. Qf2 {[%emt 0:00:53]} Be6 {[%emt 0:00:42]} 69. Re2 {[%emt 0:00:24]} Qh1 {[%emt 0:00:57]} 70. Qc5 {[%emt 0:01:03]} Nxe4+ {[%emt 0:00:27]} 71. Rxe4 {[%emt 0:00:36]} Qxe4 {[%emt 0:00:07]} 72. Qc7 {[%emt 0:00:16]} Qf4+ {[%emt 0:00:15]} 73. Kg2 {[%emt 0:00:14]} Bd5+ {[%emt 0:00:26]} 74. Kh3 {[%emt 0:00:58]} Qf3+ {[%emt 0:00:12]} 75. Kh4 {[%emt 0:00:08]} Be6 {[%emt 0:01:09]} 76. Qxg7+ {[%emt 0:00:17]} Kxg7 {[%emt 0:00:17]} 1/2-1/2

[Event "FIDE WCCC Girls-10 2024"]
[Site "Montesilvano"]
[Date "2024.11.24"]
[Round "9.22"]
[White "Norkulova, Malika"]
[Black "Rzadkowska, Lila"]
[Result "1-0"]
[Annotator "NA RC"]
[ECO "A36"]
[WhiteElo "1480"]
[BlackElo "1765"]
[PlyCount "123"]
[EventDate "2024.11.18"]
[EventType "swiss"]
[EventCountry "ITA"]
[SourceTitle "playchess.com"]
[Source "ChessBase"]
[SourceQuality "1"]
[TimeControl "5400+30"]

1. c4 {[%emt 0:03:28]} c5 {[%emt 0:00:20]} 2. Nc3 {[%emt 0:00:08]} Nc6 {[%emt 0:00:10]} 3. g3 {[%emt 0:00:07]} g6 {[%emt 0:00:09]} 4. Bg2 {[%emt 0:00:09]} Bg7 {[%emt 0:00:13]} 5. e4 {[%emt 0:00:07]} e6 {[%emt 0:00:12]} 6. d3 {[%emt 1:29:31]} Nge7 {[%emt 0:01:09]} 7. Nge2 {[%emt 0:00:00]} d6 {[%emt 0:00:37]} 8. O-O {[%emt 0:00:00]} O-O {[%emt 0:00:34]} 9. a3 {[%emt 0:00:00]} Rb8 {[%emt 0:03:31]} 10. Rb1 {[%emt 0:00:00]} b6 {[%emt 0:00:29]} 11. Bf4 {[%emt 0:00:00]} Nd4 {[%emt 0:05:14]} 12. b4 {[%emt 0:00:00]} e5 {[%emt 0:00:54]} 13. Bd2 {[%emt 0:00:00]} f5 {[%emt 0:06:31]} 14. exf5 {[%emt 0:00:00]} Bxf5 {[%emt 0:01:33]} 15. Bg5 {[%emt 0:00:00]} Bg4 {[%emt 0:03:51]} 16. f4 {[%emt 0:00:00]} exf4 {[%emt 0:07:18]} 17. gxf4 {[%emt 0:00:00]} Qe8 {[%emt 0:03:55]} 18. Qd2 {[%emt 0:00:00]} Nef5 {[%emt 0:03:25]} 19. Rfe1 {[%emt 0:00:00]} Bxe2 {[%emt 0:15:41]} 20. Nxe2 {[%emt 0:00:00]} h6 {[%emt 0:00:55]} 21. Ng3 {[%emt 0:00:00]} Qd7 {[%emt 0:06:02]} 22. Bd5+ {[%emt 0:00:00]} Kh8 {[%emt 0:01:51]} 23. Qg2 {[%emt 0:00:00]} Nxg3 {[%emt 0:08:17]} 24. hxg3 {[%emt 0:00:00]} Rbe8 {[%emt 0:01:31]} 25. Qh2 {[%emt 0:00:00]} Kh7 {[%emt 0:01:03]} 26. Bh4 {[%emt 0:00:00]} Qg4 {[%emt 0:01:51]} 27. Be7 {[%emt 0:06:48]} Rxf4 {[%emt 0:01:48]} 28. Bxd6 {[%emt 0:00:19]} Ne2+ {[%emt 0:00:38]} 29. Kg2 {[%emt 0:00:21]} Rf6 {[%emt 0:01:34]} 30. bxc5 {[%emt 0:01:03]} Qd4 {[%emt 0:02:29]} 31. Rf1 {[%emt 0:03:22]} Nc3 {[%emt 0:01:16]} 32. Qg1 {[%emt 0:00:10]} Re2+ {[%emt 0:01:52]} 33. Kh3 {[%emt 0:00:31]} Qxg1 {[%emt 0:02:34]} 34. Rxg1 {[%emt 0:00:04]} Nxb1 {[%emt 0:00:31]} 35. Rxb1 {[%emt 0:00:19]} Rff2 {[%emt 0:04:01]} 36. Rh1 {[%emt 0:00:09]} bxc5 {[%emt 0:02:42]} 37. Bxc5 {[%emt 0:00:07]} Rf5 {[%emt 0:00:15]} 38. Rb1 {[%emt 0:00:55]} a6 {[%emt 0:01:05]} 39. Rb7 {[%emt 0:00:18]} Rfe5 {[%emt 0:01:26]} 40. Bf8 {[%emt 0:01:12]} Rf2 {[%emt 0:00:57]} 41. Rxg7+ {[%emt 0:00:39]} Kh8 {[%emt 0:00:06]} 42. Rxg6 {[%emt 0:00:30]} Rxf8 {[%emt 0:00:13]} 43. Rxh6+ {[%emt 0:00:10]} Kg7 {[%emt 0:00:09]} 44. Rxa6 {[%emt 0:00:07]} Re3 {[%emt 0:01:07]} 45. Be4 {[%emt 0:00:16]} Rc8 {[%emt 0:01:28]} 46. Kh4 {[%emt 0:00:49]} Re2 {[%emt 0:01:20]} 47. g4 {[%emt 0:00:13]} Rh8+ {[%emt 0:00:35]} 48. Kg5 {[%emt 0:00:06]} Rf2 {[%emt 0:00:40]} 49. Bf5 {[%emt 0:00:18]} Rg8 {[%emt 0:00:34]} 50. Rg6+ {[%emt 0:00:17]} Kf8 {[%emt 0:00:09]} 51. Rxg8+ {[%emt 0:00:06]} Kxg8 {[%emt 0:00:15]} 52. Kf6 {[%emt 0:00:05]} Ra2 {[%emt 0:00:16]} 53. g5 {[%emt 0:00:20]} Rxa3 {[%emt 0:00:11]} 54. g6 {[%emt 0:00:11]} Ra7 {[%emt 0:00:20]} 55. Be6+ {[%emt 0:00:17]} Kf8 {[%emt 0:00:19]} 56. d4 {[%emt 0:00:05]} Rc7 {[%emt 0:00:51]} 57. c5 {[%emt 0:00:10]} Rf7+ {[%emt 0:00:26]} 58. Ke5 {[%emt 0:00:20]} Rc7 {[%emt 0:00:32]} 59. Kd6 {[%emt 0:00:07]} Rg7 {[%emt 0:00:09]} 60. c6 {[%emt 0:00:04]} Ke8 {[%emt 0:01:45]} 61. c7 {[%emt 0:00:11]} Rxc7 {[%emt 0:00:24]} 62. Kxc7 {[%emt 0:00:06]} 1-0

[Event "FIDE WCCC Girls-10 2024"]
[Site "Montesilvano"]
[Date "2024.11.24"]
[Round "9.23"]
[White "Rosset, Anna"]
[Black "Kravchuk, Daria"]
[Result "1-0"]
[Annotator "NA RC"]
[ECO "B22"]
[WhiteElo "1814"]
[BlackElo "1569"]
[PlyCount "109"]
[EventDate "2024.11.18"]
[EventType "swiss"]
[EventCountry "ITA"]
[SourceTitle "playchess.com"]
[Source "ChessBase"]
[SourceQuality "1"]
[TimeControl "5400+30"]

1. e4 {[%emt 0:00:01]} c5 {[%emt 0:00:04]} 2. Nf3 {[%emt 0:00:12]} Nc6 {[%emt 0:00:10]} 3. c3 {[%emt 0:00:11]} d5 {[%emt 0:00:12]} 4. exd5 {[%emt 0:00:56]} Qxd5 {[%emt 0:00:12]} 5. d4 {[%emt 0:00:16]} Bf5 {[%emt 0:01:49]} 6. Be2 {[%emt 0:06:38]} cxd4 {[%emt 0:01:55]} 7. cxd4 {[%emt 0:03:27]} Bxb1 {[%emt 0:00:29]} 8. Rxb1 {[%emt 0:00:17]} e6 {[%emt 0:00:29]} 9. O-O {[%emt 0:04:59]} Bd6 {[%emt 0:04:52]} 10. b3 {[%emt 0:19:49]} Nf6 {[%emt 0:06:26]} 11. Bc4 {[%emt 0:04:28]} Qh5 {[%emt 0:04:11]} 12. Bb2 {[%emt 0:00:55]} O-O {[%emt 0:02:29]} 13. Re1 {[%emt 0:13:58]} b5 {[%emt 0:11:59]} 14. Bd3 {[%emt 0:09:10]} Nb4 {[%emt 0:09:27]} 15. Be2 {[%emt 0:06:18]} Qd5 {[%emt 0:08:30]} 16. a3 {[%emt 0:03:59]} Nc6 {[%emt 0:04:06]} 17. Ne5 {[%emt 0:02:23]} Bxe5 {[%emt 0:08:47]} 18. dxe5 {[%emt 0:00:19]} Qxd1 {[%emt 0:00:54]} 19. Rbxd1 {[%emt 0:00:31]} Nd5 {[%emt 0:01:01]} 20. Bxb5 {[%emt 0:00:39]} Na5 {[%emt 0:00:40]} 21. b4 {[%emt 0:00:35]} Rab8 {[%emt 0:01:20]} 22. Be2 {[%emt 0:03:10]} Rfc8 {[%emt 0:07:12]} 23. Bd4 {[%emt 0:06:45]} Nc6 {[%emt 0:04:35]} 24. Bc5 {[%emt 0:02:11]} a5 {[%emt 0:05:03]} 25. Bd6 {[%emt 0:01:57]} axb4 {[%emt 0:02:18]} 26. Bxb8 {[%emt 0:00:27]} Rxb8 {[%emt 0:01:11]} 27. axb4 {[%emt 0:00:20]} Ncxb4 {[%emt 0:07:55]} 28. Rc1 {[%emt 0:02:47]} g6 {[%emt 0:01:19]} 29. Rc4 {[%emt 0:01:30]} h5 {[%emt 0:03:43]} 30. Rb1 {[%emt 0:00:32]} Kg7 {[%emt 0:00:34]} 31. Bf3 {[%emt 0:00:37]} Nc6 {[%emt 0:01:23]} 32. Rxb8 {[%emt 0:00:05]} Nxb8 {[%emt 0:00:06]} 33. Bxd5 {[%emt 0:00:11]} exd5 {[%emt 0:00:05]} 34. Rd4 {[%emt 0:00:45]} Nc6 {[%emt 0:00:43]} 35. Rxd5 {[%emt 0:00:08]} Kf8 {[%emt 0:00:10]} 36. f4 {[%emt 0:00:30]} Ke7 {[%emt 0:00:24]} 37. g3 {[%emt 0:00:31]} Nb4 38. Rb5 {[%emt 0:00:37]} Nc2 {[%emt 0:01:25]} 39. Kf2 {[%emt 0:00:36]} Nd4 {[%emt 0:00:34]} 40. Rb7+ {[%emt 0:00:28]} Ke6 {[%emt 0:00:18]} 41. Rb6+ {[%emt 0:00:20]} Kd5 {[%emt 0:00:25]} 42. Rf6 {[%emt 0:00:31]} Nf5 {[%emt 0:00:26]} 43. Rxf7 {[%emt 0:00:24]} Nh6 {[%emt 0:00:11]} 44. Rd7+ {[%emt 0:00:27]} Ke6 {[%emt 0:00:15]} 45. Rd6+ {[%emt 0:00:09]} Kf7 {[%emt 0:00:08]} 46. Rf6+ {[%emt 0:00:14]} Kg7 {[%emt 0:00:10]} 47. h3 {[%emt 0:00:08]} Ng8 {[%emt 0:00:19]} 48. Ra6 {[%emt 0:00:12]} Ne7 {[%emt 0:00:47]} 49. Ra7 {[%emt 0:00:21]} Kf7 {[%emt 0:00:12]} 50. Ke3 {[%emt 0:00:47]} Ke6 {[%emt 0:00:16]} 51. Rxe7+ {[%emt 0:00:23]} Kxe7 {[%emt 0:00:06]} 52. Ke4 {[%emt 0:00:02]} Ke6 {[%emt 0:00:05]} 53. g4 {[%emt 0:00:03]} hxg4 {[%emt 0:00:12]} 54. hxg4 {[%emt 0:00:03]} Ke7 {[%emt 0:00:13]} 55. f5 {[%emt 0:00:16]} 1-0

[Event "FIDE WCCC Girls-10 2024"]
[Site "Montesilvano"]
[Date "2024.11.24"]
[Round "9.24"]
[White "Samhita Pungavanam"]
[Black "Sobirova, Mumtozbegim"]
[Result "1-0"]
[Annotator "NA RC"]
[ECO "B22"]
[WhiteElo "1752"]
[BlackElo "1476"]
[PlyCount "131"]
[EventDate "2024.11.18"]
[EventType "swiss"]
[EventCountry "ITA"]
[SourceTitle "playchess.com"]
[Source "ChessBase"]
[SourceQuality "1"]
[TimeControl "5400+30"]

1. e4 {[%emt 0:00:29]} c5 {[%emt 0:00:58]} 2. Nf3 {[%emt 0:01:27]} e6 {[%emt 0:00:51]} 3. c3 {[%emt 0:00:28]} Nf6 {[%emt 0:00:23]} 4. e5 {[%emt 0:01:52]} Nd5 {[%emt 0:00:48]} 5. d4 {[%emt 0:02:20]} cxd4 {[%emt 0:00:23]} 6. Bc4 {[%emt 0:02:41]} Nb6 {[%emt 0:04:56]} 7. Bb3 {[%emt 0:02:06]} d6 {[%emt 0:01:31]} 8. exd6 {[%emt 0:02:32]} Bxd6 {[%emt 0:00:25]} 9. Qxd4 {[%emt 0:03:06]} O-O {[%emt 0:07:48]} 10. Bc2 {[%emt 0:04:53]} h6 {[%emt 0:03:33]} 11. O-O {[%emt 0:03:42]} Nc6 {[%emt 0:01:04]} 12. Qd3 {[%emt 0:03:08]} f5 {[%emt 0:01:40]} 13. Rd1 {[%emt 0:06:45]} Bc7 {[%emt 0:02:08]} 14. Qe2 {[%emt 0:04:58]} Qf6 {[%emt 0:01:27]} 15. Bb3 {[%emt 0:07:44]} Kh8 {[%emt 0:01:46]} 16. Be3 {[%emt 0:05:24]} e5 {[%emt 0:03:48]} 17. Nbd2 {[%emt 0:08:01]} Re8 {[%emt 0:04:25]} 18. Nf1 {[%emt 0:07:15]} e4 {[%emt 0:13:47]} 19. Bd4 {[%emt 0:05:01]} Nxd4 {[%emt 0:04:26]} 20. Nxd4 {[%emt 0:02:45]} Bd7 {[%emt 0:11:02]} 21. a4 {[%emt 0:04:36]} a5 {[%emt 0:04:39]} 22. Bc2 {[%emt 0:10:53]} Bc6 {[%emt 0:02:05]} 23. Nxc6 {[%emt 0:03:43]} Qxc6 {[%emt 0:01:24]} 24. Ng3 {[%emt 0:02:54]} Bxg3 {[%emt 0:01:22]} 25. hxg3 {[%emt 0:00:09]} Qc4 {[%emt 0:00:44]} 26. Qxc4 {[%emt 0:00:55]} Nxc4 {[%emt 0:00:13]} 27. b3 {[%emt 0:00:16]} Ne5 {[%emt 0:01:15]} 28. Rd5 {[%emt 0:00:46]} Rad8 {[%emt 0:03:24]} 29. Rad1 {[%emt 0:00:45]} Rxd5 {[%emt 0:03:07]} 30. Rxd5 {[%emt 0:00:03]} b6 {[%emt 0:00:36]} 31. b4 {[%emt 0:01:42]} axb4 {[%emt 0:02:13]} 32. cxb4 {[%emt 0:00:03]} Nc6 {[%emt 0:00:29]} 33. Bb1 {[%emt 0:01:19]} Nxb4 {[%emt 0:00:56]} 34. Rxf5 {[%emt 0:00:13]} Nd3 {[%emt 0:00:24]} 35. Rd5 {[%emt 0:01:00]} Ra8 {[%emt 0:02:17]} 36. Rd4 {[%emt 0:00:47]} Nc5 {[%emt 0:01:01]} 37. Bxe4 {[%emt 0:00:14]} Re8 {[%emt 0:00:23]} 38. Bc6 {[%emt 0:00:40]} Re1+ {[%emt 0:00:47]} 39. Kh2 {[%emt 0:00:02]} Re2 {[%emt 0:00:17]} 40. f3 {[%emt 0:00:43]} Re6 {[%emt 0:00:39]} 41. Be4 {[%emt 0:01:01]} Re8 {[%emt 0:00:15]} 42. Bc2 {[%emt 0:00:54]} Rc8 43. Rc4 {[%emt 0:00:46]} Ra8 {[%emt 0:01:17]} 44. g4 {[%emt 0:00:24]} Ne6 {[%emt 0:00:39]} 45. Rb4 {[%emt 0:00:29]} Nc5 {[%emt 0:00:18]} 46. f4 {[%emt 0:00:31]} Kg8 {[%emt 0:01:02]} 47. g5 {[%emt 0:00:18]} hxg5 {[%emt 0:00:10]} 48. fxg5 {[%emt 0:00:01]} Kf8 {[%emt 0:00:28]} 49. g6 {[%emt 0:00:52]} Nd7 {[%emt 0:00:23]} 50. Bf5 {[%emt 0:00:43]} Nc5 {[%emt 0:00:10]} 51. Bc2 {[%emt 0:00:32]} Nd7 {[%emt 0:00:15]} 52. Rf4+ {[%emt 0:00:14]} Nf6 {[%emt 0:00:27]} 53. g4 {[%emt 0:00:21]} Rc8 {[%emt 0:02:02]} 54. Bf5 {[%emt 0:00:13]} Rd8 {[%emt 0:00:24]} 55. g5 {[%emt 0:00:16]} Rd2+ {[%emt 0:00:08]} 56. Kg1 {[%emt 0:00:41]} Nd5 {[%emt 0:00:24]} 57. Re4 {[%emt 0:00:59]} Rd1+ {[%emt 0:00:18]} 58. Kf2 {[%emt 0:00:34]} Rd2+ {[%emt 0:00:58]} 59. Ke1 {[%emt 0:00:14]} Rc2 {[%emt 0:01:49]} 60. Bd7 {[%emt 0:00:35]} Rc1+ {[%emt 0:01:12]} 61. Kd2 {[%emt 0:00:07]} Rd1+ {[%emt 0:00:33]} 62. Kc2 {[%emt 0:01:09]} Ne3+ {[%emt 0:00:27]} 63. Rxe3 {[%emt 0:00:05]} Rxd7 {[%emt 0:00:07]} 64. Re6 {[%emt 0:00:38]} Rb7 {[%emt 0:01:15]} 65. Kb3 {[%emt 0:00:12]} b5 {[%emt 0:00:48]} 66. a5 {[%emt 0:00:07]} 1-0

[Event "FIDE WCCC Girls-10 2024"]
[Site "Montesilvano"]
[Date "2024.11.24"]
[Round "9.25"]
[White "Foong, Livia"]
[Black "Stoica, Melina-Theodora"]
[Result "1-0"]
[Annotator "NA RC"]
[ECO "B14"]
[WhiteElo "1461"]
[BlackElo "1675"]
[PlyCount "71"]
[EventDate "2024.11.18"]
[EventType "swiss"]
[EventCountry "ITA"]
[SourceTitle "playchess.com"]
[Source "ChessBase"]
[SourceQuality "1"]
[TimeControl "5400+30"]

1. d4 {[%emt 0:00:01]} Nf6 {[%emt 0:00:23]} 2. Nf3 {[%emt 0:00:14]} e6 {[%emt 0:00:26]} 3. Bf4 {[%emt 0:00:10]} d5 {[%emt 0:00:36]} 4. e3 {[%emt 0:00:06]} c5 {[%emt 0:02:59]} 5. Be2 {[%emt 0:00:28]} Nc6 {[%emt 0:03:58]} 6. c4 {[%emt 1:32:31]} cxd4 {[%emt 0:08:07]} 7. exd4 {[%emt 0:00:00]} Be7 {[%emt 0:12:35]} 8. O-O {[%emt 0:00:00]} O-O {[%emt 0:03:03]} 9. Nc3 {[%emt 0:00:00]} a6 {[%emt 0:12:50]} 10. Qd2 {[%emt 0:00:00]} dxc4 {[%emt 0:10:28]} 11. Bxc4 {[%emt 0:00:00]} b5 {[%emt 0:01:09]} 12. Be2 {[%emt 0:03:00]} Bb7 {[%emt 0:11:05]} 13. Rfd1 {[%emt 0:00:00]} Qb6 {[%emt 0:09:01]} 14. Ne5 {[%emt 0:00:00]} Rfd8 {[%emt 0:01:25]} 15. Nxc6 {[%emt 0:00:00]} Bxc6 {[%emt 0:02:03]} 16. Be3 {[%emt 0:00:00]} Qb7 {[%emt 0:00:52]} 17. Bf1 {[%emt 0:00:00]} Rd7 {[%emt 0:04:22]} 18. h3 {[%emt 0:00:00]} Rad8 {[%emt 0:00:55]} 19. Qc2 {[%emt 0:03:30]} Ne4 {[%emt 0:06:30]} 20. f3 {[%emt 0:00:00]} Nxc3 {[%emt 0:00:09]} 21. bxc3 {[%emt 0:00:00]} Bf6 {[%emt 0:00:41]} 22. Bd3 {[%emt 0:00:00]} h6 {[%emt 0:00:11]} 23. Rab1 {[%emt 0:00:00]} Qc7 {[%emt 0:01:05]} 24. Rbc1 {[%emt 0:00:00]} Bb7 {[%emt 0:00:56]} 25. Qf2 {[%emt 0:00:00]} e5 {[%emt 0:01:11]} 26. dxe5 {[%emt 0:00:00]} Bxe5 {[%emt 0:00:17]} 27. Bb6 {[%emt 0:00:00]} Bg3 {[%emt 0:00:43]} 28. Bxc7 {[%emt 0:00:00]} Bxf2+ {[%emt 0:00:05]} 29. Kxf2 {[%emt 0:00:00]} Rxc7 {[%emt 0:00:29]} 30. Bh7+ {[%emt 0:00:00]} Kxh7 {[%emt 0:00:22]} 31. Rxd8 {[%emt 0:00:00]} Kg6 {[%emt 0:00:32]} 32. Rd4 {[%emt 0:00:00]} Kf5 {[%emt 0:00:21]} 33. g4+ {[%emt 0:00:00]} Ke5 {[%emt 0:00:09]} 34. f4+ {[%emt 0:00:00]} Ke6 {[%emt 0:00:06]} 35. Re1+ {[%emt 0:00:00]} Kf6 {[%emt 0:00:35]} 36. Rd6# {[%emt 0:00:00]} 1-0